fUSD/lending_fUSD_20250809
["ID","MTS","AMOUNT","RATE_DAILY","PERIOD"]
[378105294,1754733063156,-262.133171,0.0002184,2]
[378105295,1754733063165,-262.133171,0.0002184,2]
[378105296,1754733063174,-151.0,0.0002184,2]
[378105297,1754733063184,-849.896263,0.0002184,2]
[378105298,1754733063193,-849.896263,0.0002184,2]
[378105299,1754733063202,-151.0,0.0002184,2]
[378105300,1754733063211,-151.0,0.0002184,2]
[378105301,1754733063221,-151.0,0.0002184,2]
[378105302,1754733063231,-163.604592,0.0002184,2]
[378105303,1754733063241,-163.604592,0.0002184,2]
[378105304,1754733063251,-151.0,0.0002184,2]
[378105305,1754733063261,-151.0,0.0002184,2]
[378105306,1754733063270,-151.0,0.0002184,2]
[378105307,1754733063280,-209.26142,0.0002184,2]
[378105308,1754733063289,-209.26142,0.0002184,2]
[378105309,1754733063300,-233.627996,0.0002184,2]
[378105310,1754733063310,-233.627996,0.0002184,2]
[378105311,1754733063320,-151.0,0.0002184,2]
[378105312,1754733063329,-218.00910314,0.0002184,2]
[378105313,1754733063340,-502.780815,0.0002184,2]
[378105314,1754733063350,-502.780815,0.0002184,2]
[378105315,1754733063360,-683.816444,0.0002184,2]
[378105316,1754733063370,-683.816444,0.0002184,2]
[378105317,1754733063380,-321.360453,0.0002184,2]
[378105318,1754733063390,-321.360453,0.0002184,2]
[378105319,1754733063400,-236.186177,0.0002184,2]
[378105320,1754733063410,-151.0,0.0002184,2]
[378105321,1754733063419,-151.0,0.0002184,2]
[378105322,1754733063429,-151.0,0.0002184,2]
[378105323,1754733063438,-626.770474,0.0002184,2]
[378105324,1754733063448,-626.770474,0.0002184,2]
[378105325,1754733063458,-151.0,0.0002184,2]
[378105326,1754733063468,-151.0,0.0002184,2]
[378105327,1754733063478,-494.1279,0.0002184,2]
[378105328,1754733063487,-494.1279,0.0002184,2]
[378105329,1754733063497,-153.447376,0.0002184,2]
[378105330,1754733063507,-5888.0,0.00021845,2]
[378105331,1754733063517,-167.98,0.00021866,2]
[378105332,1754733063527,-151.0,0.00021878,2]
[378105333,1754733063537,-373.07297731,0.00021878,2]
[378105334,1754733063547,-160.0,0.00021878,2]
[378105335,1754733063557,-248.71531821,0.00021878,2]
[378105336,1754733063566,-525.70808,0.00021889,2]
[378105337,1754733063576,-525.70808,0.00021889,2]
[378105338,1754733063586,-151.0,0.00021889,2]
[378105339,1754733063598,-151.0,0.00021889,2]
[378105340,1754733063607,-153.834831,0.00021889,2]
[378105341,1754733063617,-151.0,0.00021889,2]
[378105342,1754733063626,-151.0,0.00021889,2]
[378105343,1754733063636,-151.0,0.00021889,2]
[378105344,1754733063646,-151.0,0.00021895,2]
[378105345,1754733063656,-365.718955,0.00021895,2]
[378105346,1754733063666,-365.718955,0.00021895,2]
[378105347,1754733063676,-151.0,0.00021895,2]
[378105348,1754733063686,-151.0,0.00021895,2]
[378105349,1754733063695,-900.0,0.000219,7]
[378105350,1754733063704,-151.0,0.00021908,2]
[378105351,1754733063713,-151.0,0.00021908,2]
[378105352,1754733063722,-151.0,0.00021908,2]
[378105353,1754733063732,-151.0,0.00021908,2]
[378105354,1754733063741,-151.0,0.00021908,2]
[378105355,1754733063754,-175.284008,0.00021908,2]
[378105356,1754733063763,-175.284008,0.00021908,2]
[378105357,1754733063773,-3836.24,0.00021917,2]
[378105358,1754733063783,-151.0,0.00021918,2]
[378105359,1754733063793,-151.0,0.00021918,2]
[378105360,1754733063803,-151.0,0.00021918,2]
[378105361,1754733063812,-151.0,0.00021918,2]
[378105362,1754733063822,-151.0,0.00021918,2]
[378105363,1754733063832,-666.0,0.00021918,3]
[378105364,1754733063844,-5000.0,0.00021918,2]
[378105365,1754733063854,-151.0,0.00021918,7]
[378105366,1754733063863,-154.821194,0.00021918,7]
[378105367,1754733063873,-154.821194,0.00021918,7]
[378105368,1754733063882,-151.0,0.00021918,7]
[378105369,1754733063891,-151.0,0.00021918,7]
[378105370,1754733063901,-490.954111,0.00021918,7]
[378105371,1754733063911,-490.954111,0.00021918,7]
[378105372,1754733063920,-151.0,0.00021918,7]
[378105373,1754733063930,-151.0,0.00021918,7]
[378105374,1754733063943,-151.0,0.00021918,7]
[378105375,1754733063953,-151.0,0.00021918,7]
[378105376,1754733063963,-151.0,0.00021918,7]
[378105377,1754733063973,-151.0,0.00021918,7]
[378105378,1754733063982,-151.0,0.00021918,7]
[378105379,1754733063992,-151.0,0.00021918,7]
[378105380,1754733064002,-791.760612,0.00021918,7]
[378105381,1754733064012,-791.760612,0.00021918,7]
[378105382,1754733064022,-506.41299,0.00021918,7]
[378105383,1754733064031,-506.41299,0.00021918,7]
[378105384,1754733064041,-151.0,0.00021918,7]
[378105385,1754733064051,-607.361256,0.00021918,7]
[378105386,1754733064061,-607.361256,0.00021918,7]
[378105387,1754733064071,-217.977738,0.00021918,7]
[378105388,1754733064082,-217.977738,0.00021918,7]
[378105389,1754733064093,-185.983433,0.00021918,7]
[378105390,1754733064103,-185.983433,0.00021918,7]
[378105391,1754733064114,-151.0,0.00021918,7]
[378105392,1754733064124,-212.544856,0.00021918,7]
[378105393,1754733064134,-151.0,0.00021918,7]
[378105394,1754733064144,-179.519004,0.00021918,7]
[378105395,1754733064154,-179.519004,0.00021918,7]
[378105396,1754733064165,-367.666036,0.00021933,7]
[378105397,1754733064175,-367.666036,0.00021933,7]
[378105398,1754733064186,-151.0,0.00021933,7]
[378105399,1754733064195,-339.45474,0.00021933,7]
[378105400,1754733064205,-339.454731,0.00021933,7]
[378105401,1754733064217,-367.981484,0.00021933,7]
[378105402,1754733064227,-200.868553,0.00021933,7]
[378105403,1754733064237,-367.981485,0.00021933,7]
[378105404,1754733064248,-182.579961,0.00021933,7]
[378105405,1754733064259,-182.579969,0.00021933,7]
[378105406,1754733064270,-151.0,0.00021933,7]
[378105407,1754733064280,-422.337109,0.00021933,7]
[378105408,1754733064290,-422.337108,0.00021933,7]
[378105409,1754733064301,-151.0,0.00021933,7]
[378105410,1754733064311,-288.05289,0.00021933,7]
[378105411,1754733064321,-288.052884,0.00021933,7]
[378105412,1754733064331,-151.0,0.00021933,7]
[378105413,1754733064341,-223.063832,0.00021933,7]
[378105414,1754733064351,-223.06383,0.00021933,7]
[378105415,1754733064361,-5888.0,0.00021933,2]
[378105416,1754733064370,-6420.993513,0.00021937,7]
[378105417,1754733064380,-6420.993513,0.00021937,7]
[378105418,1754733064390,-151.0,0.00021937,7]
[378105419,1754733064400,-5888.0,0.00021939,2]
[378105420,1754733064410,-1776.0,0.0002194,3]
[378105421,1754733064420,-246.367784,0.00021943,7]
[378105422,1754733064429,-206.096684,0.00021943,7]
[378105423,1754733064439,-206.096684,0.00021943,7]
[378105424,1754733064450,-151.0,0.00021952,7]
[378105425,1754733064460,-2135.53270228,0.00021969,2]
[378105426,1754733064470,-151.0,0.00021998,7]
[378105427,1754733064480,-151.0,0.00021998,7]
[378105428,1754733064490,-1320.15570616,0.00022,2]
[378105429,1754733064499,-457.70825493,0.00022,7]
[378105430,1754733064509,-274.0,0.00022,2]
[378105431,1754733064519,-155.905045,0.00022024,7]
[378105432,1754733064530,-502.780815,0.00022024,7]
[378105433,1754733064540,-502.780815,0.00022024,7]
[378105434,1754733064550,-513.490104,0.00022024,7]
[378105435,1754733064561,-151.0,0.00022024,7]
[378105436,1754733064571,-494.1279,0.00022024,7]
[378105437,1754733064580,-494.1279,0.00022024,7]
[378105438,1754733064591,-420.174669,0.00022024,7]
[378105439,1754733064601,-151.0,0.00022025,7]
[378105440,1754733064610,-151.0,0.00022025,7]
[378105441,1754733064620,-192.60481,0.00022025,7]
[378105442,1754733064630,-192.60481,0.00022025,7]
[378105443,1754733064639,-151.0,0.00022025,7]
[378105444,1754733064649,-286.494581,0.00022025,7]
[378105445,1754733064658,-286.494581,0.00022025,7]
[378105446,1754733064668,-766.364442,0.00022025,7]
[378105447,1754733064678,-766.364442,0.00022025,7]
[378105448,1754733064687,-202.422011,0.00022025,7]
[378105449,1754733064697,-202.422011,0.00022025,7]
[378105450,1754733064706,-151.0,0.00022025,7]
[378105451,1754733064716,-151.0,0.00022025,7]
[378105452,1754733064726,-151.0,0.00022025,7]
[378105453,1754733064735,-151.0,0.00022027,7]
[378105454,1754733064745,-151.0,0.00022027,7]
[378105455,1754733064759,-151.0,0.00022027,7]
[378105456,1754733064769,-151.0,0.00022027,7]
[378105457,1754733064778,-151.0,0.00022027,7]
[378105458,1754733064788,-151.0,0.00022027,7]
[378105459,1754733064798,-203.398139,0.00022027,7]
[378105460,1754733064808,-203.398139,0.00022027,7]
[378105461,1754733064818,-252.955841,0.00022027,7]
[378105462,1754733064827,-252.955841,0.00022027,7]
[378105463,1754733064837,-500.0,0.0002204,2]
[378105464,1754733064847,-151.0,0.00022055,7]
[378105465,1754733064857,-151.0,0.0002206,7]
[378105466,1754733064866,-151.947047,0.0002206,7]
[378105467,1754733064875,-151.0,0.0002206,7]
[378105468,1754733064885,-233.627996,0.0002206,7]
[378105469,1754733064894,-233.627996,0.0002206,7]
[378105470,1754733064904,-321.360453,0.0002206,7]
[378105471,1754733064913,-321.360453,0.0002206,7]
[378105472,1754733064923,-151.0,0.00022108,7]
[378105473,1754733064933,-600.0,0.00022153,2]
[378105474,1754733064943,-175.62,0.00022169,2]
[378105475,1754733064952,-151.0,0.000223,7]
[378105476,1754733064962,-288.77427,0.000223,7]
[378105477,1754733064971,-262.133171,0.000223,7]
[378105478,1754733064980,-262.133171,0.000223,7]
[378105479,1754733064990,-151.0,0.000223,7]
[378105480,1754733065000,-849.896263,0.000223,7]
[378105481,1754733065011,-849.896263,0.000223,7]
[378105482,1754733065021,-163.604592,0.000223,7]
[378105483,1754733065032,-163.604592,0.000223,7]
[378105484,1754733065042,-209.26142,0.000223,7]
[378105485,1754733065051,-209.26142,0.000223,7]
[378105486,1754733065061,-683.816444,0.000223,7]
[378105487,1754733065070,-683.816444,0.000223,7]
[378105488,1754733065079,-151.0,0.000223,7]
[378105489,1754733065090,-169.251826,0.000223,7]
[378105490,1754733065099,-169.251826,0.000223,7]
[378105491,1754733065109,-926.3094548,0.000223,2]
[378105492,1754733065119,-282.640523,0.00022311,7]
[378105493,1754733065128,-151.0,0.00022311,7]
[378105494,1754733065137,-151.0,0.00022311,7]
[378105495,1754733065147,-151.0,0.00022311,7]
[378105496,1754733065157,-153.428584,0.00022311,7]
[378105497,1754733065166,-151.0,0.00022311,7]
[378105498,1754733065176,-350.216413,0.00022311,7]
[378105499,1754733065186,-350.216413,0.00022311,7]
[378105500,1754733065196,-171.986835,0.00022311,7]
[378105501,1754733065206,-171.986835,0.00022311,7]
[378105502,1754733065215,-500.0,0.00022314,2]
[378105503,1754733065225,-152.0,0.00022323,3]
[378105504,1754733065235,-2351.0,0.00022336,2]
[378105505,1754733065245,-4000.0,0.00022344,4]
[378105506,1754733065255,-203.72,0.00022372,2]
[378105507,1754733065264,-457.70825493,0.000224,7]
[378105508,1754733065274,-152.291936,0.00022409,7]
[378105509,1754733065283,-154.094054,0.00022409,7]
[378105510,1754733065292,-327.722612,0.00022409,7]
[378105511,1754733065302,-327.722612,0.00022409,7]
[378105512,1754733065311,-151.0,0.00022409,7]
[378105513,1754733065320,-151.0,0.00022409,7]
[378105514,1754733065330,-151.0,0.00022409,7]
[378105515,1754733065341,-151.0,0.00022409,7]
[378105516,1754733065351,-151.0,0.00022409,7]
[378105517,1754733065360,-151.0,0.00022409,7]
[378105518,1754733065370,-151.0,0.00022409,7]
[378105519,1754733065379,-525.70808,0.00022409,7]
[378105520,1754733065389,-525.70808,0.00022409,7]
[378105521,1754733065398,-151.0,0.00022409,7]
[378105522,1754733065409,-151.0,0.00022409,7]
[378105523,1754733065418,-365.718955,0.00022409,7]
[378105524,1754733065428,-365.718955,0.00022409,7]
[378105525,1754733065438,-151.0,0.00022409,7]
[378105526,1754733065447,-151.0,0.00022409,7]
[378105527,1754733065457,-151.0,0.00022409,7]
[378105528,1754733065466,-151.0,0.00022409,7]
[378105529,1754733065476,-151.0,0.00022409,7]
[378105530,1754733065485,-626.770474,0.00022409,7]
[378105531,1754733065495,-626.770474,0.00022409,7]
[378105532,1754733065505,-151.0,0.00022409,7]
[378105533,1754733065515,-151.0,0.00022409,7]
[378105534,1754733065524,-506.41299,0.00022409,7]
[378105535,1754733065534,-506.41299,0.00022409,7]
[378105536,1754733065543,-151.0,0.00022409,7]
[378105537,1754733065552,-151.0,0.00022409,7]
[378105538,1754733065562,-616.06715,0.00022409,7]
[378105539,1754733065571,-151.0,0.00022409,7]
[378105540,1754733065581,-151.0,0.00022409,7]
[378105541,1754733065591,-607.361256,0.00022409,7]
[378105542,1754733065601,-607.361256,0.00022409,7]
[378105543,1754733065611,-217.977738,0.00022409,7]
[378105544,1754733065621,-151.0,0.00022409,7]
[378105545,1754733065631,-217.977738,0.00022409,7]
[378105546,1754733065643,-151.0,0.00022409,7]
[378105547,1754733065653,-185.983433,0.00022409,7]
[378105548,1754733065663,-185.983433,0.00022409,7]
[378105549,1754733065673,-151.0,0.00022409,7]
[378105550,1754733065683,-6420.993513,0.00022409,7]
[378105551,1754733065694,-6420.993507,0.00022409,7]
[378105552,1754733065704,-367.666036,0.00022409,7]
[378105553,1754733065714,-367.666029,0.00022409,7]
[378105554,1754733065724,-151.0,0.00022409,7]
[378105555,1754733065733,-179.519004,0.00022409,7]
[378105556,1754733065743,-179.519007,0.00022409,7]
[378105557,1754733065758,-1776.0,0.00022439,3]
[378105558,1754733065768,-500.0,0.00022456,2]
[378105559,1754733065778,-505.11440218,0.00022456,2]
[378105560,1754733065788,-151.0,0.00022456,7]
[378105561,1754733065799,-151.0,0.00022456,7]
[378105562,1754733065808,-5888.0,0.00022468,2]
[378105563,1754733065818,-791.760612,0.00022473,7]
[378105564,1754733065829,-791.760612,0.00022473,7]
[378105565,1754733065838,-151.0,0.00022473,7]
[378105566,1754733065849,-151.0,0.00022473,7]
[378105567,1754733065858,-151.0,0.00022473,7]
[378105568,1754733065868,-192.60481,0.00022473,7]
[378105569,1754733065878,-192.60481,0.00022473,7]
[378105570,1754733065887,-420.174669,0.00022473,7]
[378105571,1754733065896,-151.0,0.00022473,7]
[378105572,1754733066130,-286.494581,0.00022473,7]
[378105573,1754733066141,-286.494581,0.00022473,7]
[378105574,1754733066150,-766.364442,0.00022473,7]
[378105575,1754733066160,-766.364442,0.00022473,7]
[378105576,1754733066169,-202.422011,0.00022473,7]
[378105577,1754733066179,-202.422011,0.00022473,7]
[378105578,1754733066188,-151.0,0.00022473,7]
[378105579,1754733066198,-151.0,0.00022473,7]
[378105580,1754733066207,-151.0,0.00022473,7]
[378105581,1754733066217,-502.780815,0.000225,7]
[378105582,1754733066226,-502.780815,0.000225,7]
[378105583,1754733066235,-513.490104,0.000225,7]
[378105584,1754733066245,-494.1279,0.000225,7]
[378105585,1754733066254,-494.1279,0.000225,7]
[378105586,1754733066264,-1084.0,0.00022508,2]
[378105587,1754733066273,-506.41299,0.00022509,7]
[378105588,1754733066283,-506.41299,0.00022509,7]
[378105589,1754733066292,-151.0,0.00022509,7]
[378105590,1754733066301,-607.361256,0.00022509,7]
[378105591,1754733066310,-607.361256,0.00022509,7]
[378105592,1754733066320,-217.977738,0.00022509,7]
[378105593,1754733066329,-217.977738,0.00022509,7]
[378105594,1754733066339,-185.983433,0.00022509,7]
[378105595,1754733066349,-185.983433,0.00022509,7]
[378105596,1754733066359,-1253.0,0.00022517,2]
[378105597,1754733066368,-956.0,0.00022517,2]
[378105598,1754733066379,-3365.0,0.00022517,2]
[378105599,1754733066389,-157.075,0.00022517,2]
[378105600,1754733066399,-810.0,0.00022517,2]
[378105601,1754733066408,-722.841,0.00022517,2]
[378105602,1754733066418,-2026.0,0.00022517,2]
[378105603,1754733066429,-597.0,0.00022517,2]
[378105604,1754733066440,-565.0,0.00022517,2]
[378105605,1754733066449,-1292.0,0.00022517,2]
[378105606,1754733066459,-1653.0,0.00022517,2]
[378105607,1754733066470,-21450.0,0.00022517,2]
[378105609,1754733066480,-866.0,0.00022517,2]
[378105610,1754733066490,-4143.0,0.00022517,2]
[378105611,1754733066500,-6079.0,0.00022517,2]
[378105612,1754733066510,-159.775808,0.00022525,2]
[378105613,1754733066520,-159.775808,0.00022525,2]
[378105614,1754733066530,-159.775808,0.00022525,2]
[378105615,1754733066539,-159.775808,0.00022525,2]
[378105616,1754733066549,-159.775808,0.00022525,2]
[378105617,1754733066558,-159.775808,0.00022525,2]
[378105618,1754733066568,-159.775808,0.00022525,2]
[378105619,1754733066578,-159.775808,0.00022525,2]
[378105620,1754733066588,-159.775808,0.00022525,2]
[378105621,1754733066599,-159.775808,0.00022525,2]
[378105622,1754733066608,-159.775808,0.00022525,2]
[378105623,1754733066618,-159.775808,0.00022525,2]
[378105624,1754733066627,-159.775808,0.00022525,2]
[378105625,1754733066637,-159.775808,0.00022525,2]
[378105626,1754733066646,-159.775808,0.00022525,2]
[378105627,1754733066656,-159.775808,0.00022525,2]
[378105628,1754733066665,-159.775808,0.00022525,2]
[378105629,1754733066676,-500.0,0.00022525,2]
[378105630,1754733066685,-500.0,0.00022525,2]
[378105631,1754733066695,-500.0,0.00022525,2]
[378105633,1754733066704,-159.85635578,0.00022525,2]
[378105634,1754733066713,-500.0,0.00022525,2]
[378105635,1754733066723,-159.775808,0.00022525,2]
[378105636,1754733066732,-159.775808,0.00022542,2]
[378105637,1754733066741,-159.775808,0.00022542,2]
[378105638,1754733066754,-159.775808,0.00022542,2]
[378105639,1754733066764,-159.775808,0.00022542,2]
[378105640,1754733066774,-159.775808,0.00022542,2]
[378105641,1754733066784,-159.775808,0.00022542,2]
[378105642,1754733066795,-159.775808,0.00022542,2]
[378105643,1754733066804,-159.775808,0.00022542,2]
[378105644,1754733066813,-159.775808,0.00022542,2]
[378105645,1754733066823,-159.775808,0.00022542,2]
[378105646,1754733066832,-159.775808,0.00022542,2]
[378105647,1754733066842,-159.775808,0.00022542,2]
[378105648,1754733066851,-159.775808,0.00022542,2]
[378105649,1754733066861,-160.08048006,0.00022542,2]
[378105650,1754733066870,-159.775808,0.00022542,2]
[378105651,1754733066879,-159.775808,0.00022542,2]
[378105652,1754733066888,-150.7884188,0.00022542,2]
[378105653,1754733066898,-199.71976,0.00022542,2]
[378105654,1754733066909,-159.775808,0.00022542,2]
[378105655,1754733066919,-159.775808,0.00022542,2]
[378105656,1754733066929,-159.775808,0.00022542,2]
[378105657,1754733066939,-2135.53270228,0.00022542,2]
[378105658,1754733066948,-5888.0,0.00022551,2]
[378105659,1754733066958,-9999.99,0.00022562,2]
[378105660,1754733066967,-1497.14,0.00022562,2]
[378105661,1754733066976,-292.48,0.00022562,2]
[378105662,1754733066985,-1429.64,0.00022562,2]
[378105663,1754733066994,-2651.97,0.00022562,2]
[378105664,1754733067004,-150.99,0.00022562,2]
[378105665,1754733067014,-999.99,0.00022562,2]
[378105666,1754733067024,-1149.67,0.00022562,2]
[378105667,1754733067033,-9999.99,0.00022562,2]
[378105668,1754733067042,-252.955841,0.00022586,7]
[378105669,1754733067054,-252.955841,0.00022586,7]
[378105670,1754733067072,-212.62235272,0.00022588,2]
[378105671,1754733067082,-5888.0,0.0002259,2]
[378105672,1754733067091,-519.0,0.00022591,6]
[378105673,1754733067101,-151.0,0.00022598,7]
[378105674,1754733067110,-616.06715,0.00022598,7]
[378105675,1754733067119,-151.0,0.00022598,7]
[378105676,1754733067130,-151.0,0.00022598,7]
[378105677,1754733067139,-158.086028,0.00022608,7]
[378105678,1754733067150,-151.0,0.00022608,7]
[378105679,1754733067159,-151.0,0.00022615,7]
[378105680,1754733067169,-233.627996,0.00022615,7]
[378105681,1754733067179,-233.627996,0.00022615,7]
[378105682,1754733067190,-151.0,0.00022615,7]
[378105683,1754733067201,-151.0,0.00022615,7]
[378105684,1754733067211,-151.0,0.00022615,7]
[378105685,1754733067221,-321.360453,0.00022615,7]
[378105686,1754733067231,-321.360453,0.00022615,7]
[378105687,1754733067240,-151.0,0.00022615,7]
[378105688,1754733067250,-350.216413,0.00022615,7]
[378105689,1754733067260,-350.216413,0.00022615,7]
[378105690,1754733067269,-171.986835,0.00022615,7]
[378105691,1754733067280,-171.986835,0.00022615,7]
[378105692,1754733067290,-151.0,0.00022615,7]
[378105693,1754733067299,-151.0,0.00022615,7]
[378105694,1754733067309,-151.0,0.00022615,7]
[378105695,1754733067325,-192.60481,0.00022615,7]
[378105696,1754733067342,-192.60481,0.00022615,7]
[378105697,1754733067351,-420.174669,0.00022615,7]
[378105698,1754733067360,-211.652696,0.00022615,7]
[378105699,1754733067370,-286.494581,0.00022615,7]
[378105700,1754733067379,-286.494581,0.00022615,7]
[378105701,1754733067389,-766.364442,0.00022615,7]
[378105702,1754733067398,-766.364442,0.00022615,7]
[378105703,1754733067408,-202.422011,0.00022615,7]
[378105704,1754733067417,-202.422011,0.00022615,7]
[378105705,1754733067426,-151.0,0.00022615,7]
[378105706,1754733067435,-151.0,0.00022615,7]
[378105707,1754733067444,-151.0,0.00022615,7]
[378105708,1754733067454,-159.775808,0.00022627,2]
[378105709,1754733067463,-159.775808,0.000227,2]
[378105710,1754733067473,-159.743872,0.000227,2]
[378105711,1754733067483,-500.0,0.000227,2]
[378105712,1754733067493,-159.775808,0.000227,2]
[378105713,1754733067503,-600.0,0.00022701,2]
[378105714,1754733067513,-151.0,0.00022718,7]
[378105715,1754733067522,-151.0,0.00022718,7]
[378105716,1754733067532,-151.0,0.00022718,7]
[378105717,1754733067542,-626.770474,0.00022718,7]
[378105718,1754733067551,-626.770474,0.00022718,7]
[378105719,1754733067560,-151.0,0.00022718,7]
[378105720,1754733067570,-227.080482,0.00022718,7]
[378105721,1754733067580,-169.251826,0.00022718,7]
[378105722,1754733067589,-169.251826,0.00022718,7]
[378105723,1754733067599,-151.0,0.00022729,7]
[378105724,1754733067613,-151.0,0.00022729,7]
[378105725,1754733067624,-151.0,0.00022729,7]
[378105726,1754733067635,-151.0,0.00022729,7]
[378105727,1754733067644,-151.0,0.00022729,7]
[378105728,1754733067654,-151.0,0.00022729,7]
[378105729,1754733067663,-506.41299,0.00022729,7]
[378105730,1754733067673,-506.41299,0.00022729,7]
[378105731,1754733067683,-151.0,0.00022729,7]
[378105732,1754733067692,-607.361256,0.00022729,7]
[378105733,1754733067703,-607.361256,0.00022729,7]
[378105734,1754733067712,-217.977738,0.00022729,7]
[378105735,1754733067722,-217.977738,0.00022729,7]
[378105736,1754733067731,-185.983433,0.00022729,7]
[378105737,1754733067741,-185.983433,0.00022729,7]
[378105738,1754733067756,-500.0,0.00022729,2]
[378105739,1754733067767,-500.0,0.00022729,2]
[378105740,1754733067776,-500.0,0.00022729,2]
[378105741,1754733067787,-500.0,0.00022729,2]
[378105742,1754733067797,-500.0,0.00022729,2]
[378105743,1754733067806,-333.81,0.00022729,2]
[378105744,1754733067814,-252.955841,0.0002273,7]
[378105745,1754733067825,-252.955841,0.0002273,7]
[378105746,1754733067835,-151.0,0.0002273,7]
[378105747,1754733067847,-151.0,0.0002273,7]
[378105748,1754733067857,-151.0,0.0002273,7]
[378105749,1754733067868,-791.760612,0.0002273,7]
[378105750,1754733067878,-791.760612,0.0002273,7]
[378105751,1754733067887,-151.0,0.00022732,7]
[378105752,1754733067897,-151.0,0.00022732,7]
[378105753,1754733067906,-151.0,0.00022732,7]
[378105754,1754733067915,-151.0,0.00022732,7]
[378105755,1754733067925,-285.364011,0.00022732,7]
[378105756,1754733067935,-151.0,0.00022732,7]
[378105757,1754733067944,-151.0,0.00022732,7]
[378105758,1754733067953,-151.0,0.00022732,7]
[378105759,1754733067963,-154.821194,0.00022732,7]
[378105760,1754733067972,-154.821194,0.00022732,7]
[378105761,1754733067982,-154.821194,0.00022732,7]
[378105762,1754733067993,-154.821194,0.00022732,7]
[378105763,1754733068002,-206.096684,0.00022732,7]
[378105764,1754733068012,-206.096684,0.00022732,7]
[378105765,1754733068022,-206.096684,0.00022732,7]
[378105766,1754733068031,-206.096684,0.00022732,7]
[378105767,1754733068041,-151.0,0.00022732,7]
[378105768,1754733068050,-151.0,0.00022732,7]
[378105769,1754733068060,-151.0,0.00022732,7]
[378105770,1754733068071,-151.0,0.00022732,7]
[378105771,1754733068090,-151.0,0.00022732,7]
[378105772,1754733068100,-152.476073,0.00022732,7]
[378105773,1754733068109,-151.0,0.00022732,7]
[378105774,1754733068119,-151.0,0.00022732,7]
[378105775,1754733068129,-151.0,0.00022732,7]
[378105776,1754733068142,-151.0,0.00022732,7]
[378105777,1754733068151,-490.954111,0.00022732,7]
[378105778,1754733068160,-490.954111,0.00022732,7]
[378105779,1754733068170,-490.954111,0.00022732,7]
[378105780,1754733068179,-490.954111,0.00022732,7]
[378105781,1754733068190,-151.0,0.00022732,7]
[378105782,1754733068200,-151.0,0.00022732,7]
[378105783,1754733068210,-151.0,0.00022732,7]
[378105784,1754733068223,-203.398139,0.00022732,7]
[378105785,1754733068234,-203.398139,0.00022732,7]
[378105786,1754733068244,-151.0,0.00022732,7]
[378105787,1754733068253,-262.133171,0.00022732,7]
[378105788,1754733068263,-262.133171,0.00022732,7]
[378105789,1754733068273,-151.0,0.00022732,7]
[378105790,1754733068283,-175.284008,0.00022732,7]
[378105791,1754733068292,-175.284008,0.00022732,7]
[378105792,1754733068302,-151.0,0.00022732,7]
[378105793,1754733068311,-849.896263,0.00022732,7]
[378105794,1754733068320,-849.896263,0.00022732,7]
[378105795,1754733068330,-163.604592,0.00022732,7]